Cogmind - Beta 15 @@@ ROGUE MODE // 2025.06.03 @ 19:51:41 Player: OctagonalPrism Result: Destroyed by Executioner with Helical Railgun Performance ------------- Evolutions (8) 4000 Regions Visited (19) 3800 Robots Destroyed (95) 475 Value Destroyed (2511) 2511 Prototype IDs (74) 1480 Alien Tech Used (1) 200 Bonus (1664) 1664 TOTAL SCORE: 14130 Bonus ------- High Alert Combat Kills 11 Registered with UFD 300 Met Optimus in HQ 500 Met Zhirov 300 Met Optimus at Protoforge 1000 Friendly Fire -447 Cogmind --------- Core Integrity 0/1450 Matter 300/300 Energy 157/170 System Corruption 1% Temperature Cool (9) Movement Flying (92) Ox1 Location -2/Protoforge Parts ------- > --- POWER (2) -------- Light Antimatter Reactor > --- PROPULSION (6) --- Impulse Thruster Array Experimental Surge Thruster > --- UTILITY (13) ----- Makeshift Coolant Network Medium Storage Unit Jamming Amplifier Makeshift Propulsion Shielding Advanced Hacking Suite System Shield System Shield > --- WEAPON (2) ------- (None) > --- INVENTORY (10) --- UFD Drillbomb Peak State ------------ > --- POWER ------------ Micro Fission Core Light Quantum Reactor > --- PROPULSION ------- Field Propulsion Array Field Propulsion Array Impulse Thruster Array > --- UTILITY ---------- Medium Storage Unit Experimental Energy Well Structural Scanner Experimental Sensor Array Advanced Signal Interpreter Advanced Transmission Jammer Jamming Amplifier Centrium Medium Armor Plating Hacking Suite Improved Hacking Suite Advanced Hacking Suite System Shield System Shield > --- WEAPON ----------- Chainsword Companion Sword > --- INVENTORY -------- UFD Drillbomb [Rating: 147] Favorites ----------- Power Light Deuterium Engine Engine Light Deuterium Engine Power Core Micro Fission Core Reactor Micro Antimatter Reactor Propulsion Xenon Bombardment Thruster Treads Advanced Treads Wheel Wheel Flight Unit Xenon Bombardment Thruster Utility Hacking Suite Device Structural Scanner Storage Small Storage Unit Processor Advanced Signal Interpreter Hackware Hacking Suite Protection Light Armor Plating Weapon Companion Sword Energy Gun Improved Medium Laser Ballistic Gun Light Assault Rifle Ballistic Cannon Light Cannon Launcher Grenade Launcher Slashing Weapon Companion Sword Build | -11 -10 -10 -9 -9 -8 -7 -7 -7 -7 -5 -5 -5 -5 -4 -4 -3 -2 -2 -2 ------- Run | Yrd Mat Min Mat Min Mat Fac Sto Rec Scr Fac Upp Upp Zhi Pro Fac Res Res Tes Frg Slots Evolved 16 | . . . 2 . 2 2 . . . 4 . . . . 2 2 2 . . Power 1 | . . . . . . . . . . 1 . . . . . . . . . Propulsion 4 | . . . . . 1 . . . . 1 . . . . . 1 1 . . Utility 11 | . . . 2 . 1 2 . . . 2 . . . . 2 1 1 . . Weapon . | . . . . . . . . . . . . . . . . . . . . Parts Attached 119 | 7 9 4 17 . 13 5 . 1 3 6 1 1 1 . 7 11 3 7 23 Power 16 | 1 2 1 2 . 1 . . . . 2 . . 1 . . 2 1 . 3 Engine 8 | 1 2 1 2 . 1 . . . . 1 . . . . . . . . . Core 3 | . . . . . . . . . . 1 . . . . . 2 . . . Reactor 5 | . . . . . . . . . . . . . 1 . . . 1 . 3 Propulsion 29 | 2 2 . 6 . 3 1 . . . 2 . . . . 1 1 1 2 8 Treads 5 | . 1 . 4 . . . . . . . . . . . . . . . . Leg . | . . . . . . . . . . . . . . . . . . . . Wheel 5 | 2 1 . 2 . . . . . . . . . . . . . . . . Hover . | . . . . . . . . . . . . . . . . . . . . Flight 19 | . . . . . 3 1 . . . 2 . . . . 1 1 1 2 8 Utility 59 | 2 2 2 7 . 8 4 . 1 2 2 1 1 . . 6 7 1 5 8 Device 24 | 1 1 1 3 . 3 1 . 1 . 1 . . . . 1 6 1 2 2 Storage 7 | 1 1 . . . 2 . . . . . . . . . . . . 2 1 Processor 4 | . . . . . 1 . . . 1 . . . . . 2 . . . . Hackware 16 | . . . . . 2 3 . . 1 1 1 1 . . 3 1 . 1 2 Protection 8 | . . 1 4 . . . . . . . . . . . . . . . 3 Artifact . | . . . . . . . . . . . . . . . . . . . . Weapon 15 | 2 3 1 2 . 1 . . . 1 . . . . . . 1 . . 4 Energy Gun 2 | 1 . . 1 . . . . . . . . . . . . . . . . Energy Cannon . | . . . . . . . . . . . . . . . . . . . . Ballistic Gun 5 | 1 2 . . . . . . . . . . . . . . . . . 2 Ballistic Cannon 2 | . 1 . 1 . . . . . . . . . . . . . . . . Launcher 2 | . . 1 . . . . . . . . . . . . . . . . 1 Special Weapon . | . . . . . . . . . . . . . . . . . . . . Impact Weapon . | . . . . . . . . . . . . . . . . . . . . Slashing Weapon 4 | . . . . . 1 . . . 1 . . . . . . 1 . . 1 Piercing Weapon . | . . . . . . . . . . . . . . . . . . . . Special Melee Weapon . | . . . . . . . . . . . . . . . . . . . . Unidentified Prototypes 20 | . . . . . . . . . 1 1 . . 2 . . 5 1 5 5 Corrupted Parts 1 | . . . . . . . . . 1 . . . . . . . . . . System Corruption 1 | . . . . . . . . . 1 . . . . . . . . . . Parts Lost 27 | . 1 2 3 . 2 . . . . 1 . . . . 1 . 1 3 13 Power 3 | . . 1 1 . . . . . . . . . . . . . . . 1 Propulsion 9 | . . 1 1 . . . . . . . . . . . 1 . . 1 5 Utility 12 | . . . 1 . 2 . . . . 1 . . . . . . 1 2 5 Weapon 3 | . 1 . . . . . . . . . . . . . . . . . 2 Highest Loss Streak 4 | . 1 2 2 . 1 . . . . 1 . . . . 1 . 1 2 4 To Critical Strikes 1 | . . . . . . . . . . . . . . . . . . . 1 Average Backups 7 | 2 6 7 8 10 8 6 8 8 8 6 8 8 7 8 7 4 4 6 3 Power 1 | . 1 . . 1 . 1 2 2 2 1 1 1 1 2 2 1 1 1 . Propulsion . | . 1 . . . . . 1 . . . 1 1 . . . . . . . Utility 3 | . 3 5 5 6 4 2 3 3 4 2 4 4 3 3 2 1 1 1 . Weapon 1 | . 1 2 2 3 2 2 2 2 2 2 2 2 2 2 2 1 1 1 . Tool/Special . | . . . . . . . . . . . . . . . . . . . . Unused Backups 11 | . . . 4 . 2 1 . . . . . . 1 . . 1 . . 2 Power . | . . . . . . . . . . . . . . . . . . . . Propulsion . | . . . . . . . . . . . . . . . . . . . . Utility 5 | . . . 2 . . 1 . . . . . . 1 . . 1 . . . Weapon 5 | . . . 2 . 2 . . . . . . . . . . . . . 1 Tool/Special 1 | . . . . . . . . . . . . . . . . . . . 1 Average Slot Usage (%) 91 | . 99 96 97 100 88 91 92 92 91 90 94 94 90 88 83 80 80 80 80 Engine 6 | . 14 13 10 11 9 7 7 7 7 9 5 5 2 . . . . . . Core 1 | . . . . . . . . . . . 5 5 2 . . 8 4 4 3 Reactor 1 | . . . . . . . . . . . . . 2 5 5 . 3 4 3 Treads 5 | . 8 14 12 11 5 . . . . . . . . . . . . . . Wheel 5 | . 18 12 9 11 5 . . . . . . . . . . . . . . Flight 10 | . . . . . 11 23 23 23 22 22 23 23 23 23 18 11 16 16 14 Device 17 | . 13 7 24 29 22 14 15 15 14 12 17 17 17 17 15 14 13 13 10 Storage 8 | . 14 14 11 11 9 7 7 7 7 5 5 5 5 5 5 2 4 7 7 Processor 3 | . . . . . 4 7 7 7 7 5 5 5 5 5 7 9 8 8 7 Hackware 11 | . . . . . 5 22 23 23 23 24 23 23 23 23 24 23 20 15 22 Protection 2 | . . 7 7 3 1 . . . . . . . . . . . . . 2 Energy Gun 3 | . 4 . 7 11 5 . . . . . . . . . . . . . . Ballistic Gun 3 | . 17 13 3 . . . . . . . . . . . . . . . . Ballistic Cannon 4 | . 5 . 10 11 5 . . . . . . . . . . . . . . Slashing Weapon 3 | . . . . . 3 7 7 7 6 5 5 5 5 5 5 7 8 8 4 Peak Build Rating 147 | 7 8 8 22 22 34 44 44 44 52 70 71 73 77 74 93 118 118 139 147 Average Rating 52 | 4 7 7 17 20 27 38 44 44 45 63 70 72 73 74 86 101 116 124 128 On Entrance 54 | . 7 8 8 22 22 32 44 44 44 51 70 71 73 74 74 87 109 112 129 Naked Turns . | . . . . . . . . . . . . . . . . . . . . Heaviest Build 49 | 13 20 21 36 36 36 15 15 15 16 23 23 23 24 24 24 25 28 33 49 Greatest Support 47 | 26 26 20 43 22 22 18 18 18 18 25 25 25 25 25 28 36 43 47 47 Greatest Overweight (x) 4 | . 1 1 3 3 4 4 . . . . . . . . 1 1 . . 1 Average Overweight (x) . | . . 1 1 1 . . . . . . . . . . . . . . . Largest Inventory Capacity 10 | 8 10 10 10 10 10 8 8 8 8 8 8 8 8 8 8 8 8 8 10 Average Capacity 8 | 6 8 10 10 10 9 8 8 8 8 8 8 8 8 8 8 6 8 8 9 Most Carried 10 | 5 10 10 10 10 10 8 8 8 8 8 8 8 8 8 8 8 5 8 10 Average Carried 7 | 2 6 8 9 9 8 6 8 7 7 6 8 8 7 8 7 4 4 6 8 Final Capacity 10 | 8 10 10 10 10 8 8 8 8 8 8 8 8 8 8 8 8 8 8 10 Final Carried 10 | 4 10 9 10 10 7 8 8 8 8 8 8 8 8 8 8 4 4 8 10 Class Distribution -------------------- 42% | Mutant 25% | Hacker-Ninja 14% | Hacker-Scout 5% | Wizard-Ninja 4% | Hacker-Mutant 4% | Scavenger-Mutant Dominant Class ---------------- Mutant | -10/Materials Mutant | -10/Mines Mutant | -9/Materials Mutant | -9/Mines Mutant | -8/Materials Hacker-Scout | -7/Factory Hacker-Scout | -7/Storage Hacker-Scout | -7/Recycling Hacker-Scout | -7/Scraptown Hacker-Scout | -5/Factory Hacker-Ninja | -5/Upper Caves Hacker-Ninja | -5/Upper Caves Hacker-Ninja | -5/Zhirov Hacker-Ninja | -4/Proximity Caves Hacker-Ninja | -4/Factory Hacker-Ninja | -3/Research Hacker-Ninja | -2/Research Hacker-Ninja | -2/Testing Wizard-Ninja | -2/Protoforge Resources | -11 -10 -10 -9 -9 -8 -7 -7 -7 -7 -5 -5 -5 -5 -4 -4 -3 -2 -2 -2 ----------- Run | Yrd Mat Min Mat Min Mat Fac Sto Rec Scr Fac Upp Upp Zhi Pro Fac Res Res Tes Frg Matter Collected 4041 | 251 372 69 994 84 153 32 120 82 20 . 150 10 36 . 44 . . 62 1562 Remotely . | . . . . . . . . . . . . . . . . . . . . Salvage Created 2477 | 70 583 23 948 84 212 32 47 23 . . . . 99 . 14 . . 62 280 Parts 175 | 11 37 . 67 5 13 4 1 8 . . . . 1 . 4 . . 5 19 Haulers Intercepted 4 | . 2 . 2 . . . . . . . . . . . . . . . . Recyclers Shooed 2 | . 1 . 1 . . . . . . . . . . . . . . . . Parts Field Recycled . | . . . . . . . . . . . . . . . . . . . . Retrieved Matter . | . . . . . . . . . . . . . . . . . . . . Parts Self-Destructed 1 | . . . . . . . . . . . . . 1 . . . . . . Prevented . | . . . . . . . . . . . . . . . . . . . . Kills | -11 -10 -10 -9 -9 -8 -7 -7 -7 -7 -5 -5 -5 -5 -4 -4 -3 -2 -2 -2 ------- Run | Yrd Mat Min Mat Min Mat Fac Sto Rec Scr Fac Upp Upp Zhi Pro Fac Res Res Tes Frg Combat Hostiles Destroyed 68 | . 14 8 31 2 4 . 1 . . . . . . . . . . . 8 Melee 2 | . . . . . . . 1 . . . . . . . . . . . 1 Guns 26 | . 11 2 10 1 1 . . . . . . . . . . . . . 1 Cannons 28 | . 3 . 21 1 3 . . . . . . . . . . . . . . AOE 12 | . . 6 . . . . . . . . . . . . . . . . 6 Classes Destroyed 17 | 1 6 1 3 1 . . 1 . . . . . . . . . . . 4 Worker 1 | . . . 1 . . . . . . . . . . . . . . . . Builder 3 | . 1 . . . . . . 2 . . . . . . . . . . . Tunneler 3 | 3 . . . . . . . . . . . . . . . . . . . Hauler 4 | . 2 . 2 . . . . . . . . . . . . . . . . Mechanic 1 | . . . 1 . . . . . . . . . . . . . . . . Operator 11 | . 1 . 3 . 1 2 . . . . . . . . 1 . . 1 2 Drone 4 | . . . . . . . . . . . . . . . . . . . 4 Watcher 11 | . 3 . 5 . 2 . . . . . . . . . . . . 1 . Swarmer 21 | . 6 . 15 . . . . . . . . . . . . . . . . Grunt 19 | . 8 . 6 1 3 . . . . . . . . . . . . . 1 Brawler 1 | . . . . 1 . . . . . . . . . . . . . . . Duelist 1 | . . . . . . . . . . . . . . . . . . . 1 Sentry 11 | . . . 10 . 1 . . . . . . . . . . . . . . Hunter 1 | . . . . . . . 1 . . . . . . . . . . . . Striker 2 | . . . . . . . . . . . . . . . . . . . 2 Scraphulk 1 | . . . . . . . . . . . . . . . . . . . 1 Assembled 8 | . . 8 . . . . . . . . . . . . . . . . . Best Kill Streak 8 | 3 3 8 5 2 3 1 1 2 . . . . . . . . . 1 5 Combat Bots Only 8 | . 3 8 4 2 3 . 1 . . . . . . . . . . . 5 Max Kills in Single Turn 3 | 1 1 3 2 2 1 1 1 1 . . . . . . 1 . . 1 2 Gunslinging . | . . . . . . . . . . . . . . . . . . . . Exploded 3 | . . 3 . . . . . . . . . . . . . . . . 2 Melee 1 | . . . . . . . 1 . . . . . . . . . . . 1 Uniques/NPCs Destroyed . | . . . . . . . . . . . . . . . . . . . . Combat | -11 -10 -10 -9 -9 -8 -7 -7 -7 -7 -5 -5 -5 -5 -4 -4 -3 -2 -2 -2 -------- Run | Yrd Mat Min Mat Min Mat Fac Sto Rec Scr Fac Upp Upp Zhi Pro Fac Res Res Tes Frg Hostile Shots Fired 691 | . 68 15 187 . 31 4 12 . . 9 . . . . 23 . 6 112 224 Missed 326 | . 21 5 51 . 9 3 8 . . 3 . . . . 10 . 2 86 128 Hits 365 | . 47 10 136 . 22 1 4 . . 6 . . . . 13 . 4 26 96 Melee 14 | . . 8 . . . . . . . . . . . . . . . . 6 Projectile 351 | . 47 2 136 . 22 1 4 . . 6 . . . . 13 . 4 26 90 Critical Strikes 11 | . . . 2 . . . . . . . . . . . . . . 1 8 Actively Blocked 2 | . . . . . . . . . . . . . . . . . . . 2 Part Disruptions 1 | . . . . . . . . . . . . . . . . . . . 1 Damage Taken 6922 | . 502 241 1547 . 349 12 37 . . 119 . . . . 260 . 56 474 3325 Core 2160 | . 105 20 329 . 112 . 17 . . 18 . . . . 105 . . 180 1274 Absorbed by Shields . | . . . . . . . . . . . . . . . . . . . . Redirected to Shielding 75 | . . . . . . . . . . . . . . . . . . . 75 Regen/Repaired (Parts) 282 | . 96 . 154 . . 30 . . 2 . . . . . . . . . . Core Remaining (%) 78 | 100 . 50 . 17 79 . . . 97 . . . . 98 90 100 . . . Volleys Fired 271 | 3 73 16 128 2 19 . . . . . . . . . . . . . 30 Largest 2 | 2 2 1 2 2 2 . . . . . . . . . . . . . 1 Hottest 93 | 60 60 30 93 93 93 . . . . . . . . . . . . . 55 Shots Fired 447 | 6 131 16 228 3 34 . . . . . . . . . . . . . 29 Gun 282 | 6 114 10 125 2 18 . . . . . . . . . . . . . 7 Cannon 137 | . 17 . 103 1 16 . . . . . . . . . . . . . . Launcher 28 | . . 6 . . . . . . . . . . . . . . . . 22 Special . | . . . . . . . . . . . . . . . . . . . . Kinetic 284 | 3 104 10 143 1 16 . . . . . . . . . . . . . 7 Thermal 135 | 3 27 . 85 2 18 . . . . . . . . . . . . . . Explosive 28 | . . 6 . . . . . . . . . . . . . . . . 22 Electromagnetic . | . . . . . . . . . . . . . . . . . . . . Robot Hit Streak 14 | 3 14 9 10 12 13 . . . . . . . . . . . . . 4 Robot Miss Streak 5 | 1 4 1 5 . 1 . . . . . . . . . . . . . 2 Penetration Max 2 | . . . . . . . . . . . . . . . . . . . 2 Secondary Targets 3 | . 3 . . . . . . . . . . . . . . . . . . Max Gunslinging Chain 1 | . 1 . . . . . . . . . . . . . . . . . . Shots Hit Robots 302 | 4 86 9 137 2 26 3 2 2 . . . . 4 . 2 . . 7 18 Core Hits 152 | 3 38 23 51 2 10 1 1 1 . . . . 1 . 1 . . 3 17 Critical Kills 2 | . . . . . . . . . . . . . . . . . . . 2 Critical Parts Destroyed 1 | . . . . . . . . . . . . . . . . . . . 1 Critical Strikes 15 | . . . 10 . 2 . . . . . . . . . . . . . 3 Burn 7 | . . . 5 . 2 . . . . . . . . . . . . . . Destroy 3 | . . . . . . . . . . . . . . . . . . . 3 Blast 5 | . . . 5 . . . . . . . . . . . . . . . . Melee Attacks 171 | . . . . . 17 18 7 6 . 15 3 . 4 2 21 14 4 17 43 Impact . | . . . . . . . . . . . . . . . . . . . . Slashing 171 | . . . . . 17 18 7 6 . 15 3 . 4 2 21 14 4 17 43 Piercing . | . . . . . . . . . . . . . . . . . . . . Sneak Attacks 11 | . . . . . . 2 . 2 . . . . . . 1 . . . 6 Combat Hostiles . | . . . . . . . . . . . . . . . . . . . . Follow-up Attacks 1 | . . . . . . . . . . . . . . . . . . 1 . Damage Inflicted 9719 | 49 860 436 2524 58 581 252 73 149 . . . . 343 . 159 . . 341 3894 Guns 2220 | 49 667 70 954 34 184 . . . . . . . . . . . . . 262 Cannons 2097 | . 193 . 1570 24 310 . . . . . . . . . . . . . . Explosions 3231 | . . 366 . . . . . . . . . . . . . . . . 2865 Melee 2171 | . . . . . 87 252 73 149 . . . . 343 . 159 . . 341 767 Ramming . | . . . . . . . . . . . . . . . . . . . . Kinetic 3086 | 27 618 70 1775 24 310 . . . . . . . . . . . . . 262 Thermal 1231 | 22 242 . 749 34 184 . . . . . . . . . . . . . . Explosive 3231 | . . 366 . . . . . . . . . . . . . . . . 2865 Electromagnetic . | . . . . . . . . . . . . . . . . . . . . Impact . | . . . . . . . . . . . . . . . . . . . . Slashing 2171 | . . . . . 87 252 73 149 . . . . 343 . 159 . . 341 767 Piercing . | . . . . . . . . . . . . . . . . . . . . Highest Corruption 2 | . . 2 . . . . . . 1 1 1 1 1 1 . . . . 1 Average Corruption 1 | . . 2 . . . . . . 1 1 1 1 1 1 . . . . 1 Corruption Purged . | . . . . . . . . . . . . . . . . . . . . Corruption Blocked . | . . . . . . . . . . . . . . . . . . . . Effects 17 | . . 2 . . . . . . . . 3 1 1 1 . . . . 9 Message Errors 4 | . . . . . . . . . . . 1 . 1 . . . . . 2 Matter Fused 5 | . . 1 . . . . . . . . 1 1 . . . . . . 2 Heat Flow Errors 3 | . . 1 . . . . . . . . . . . . . . . . 2 Energy Discharges 2 | . . . . . . . . . . . 1 . . . . . . . 1 Data Loss (minor) 2 | . . . . . . . . . . . . . . 1 . . . . 1 Data Loss (major) 1 | . . . . . . . . . . . . . . . . . . . 1 Overload Shots . | . . . . . . . . . . . . . . . . . . . . Overflow Damage 1073 | . . . 58 . . 122 . 35 . . . . 129 . 13 . . 43 673 Projectiles 58 | . . . 58 . . . . . . . . . . . . . . . . Explosions 360 | . . . . . . . . . . . . . . . . . . . 360 Melee 655 | . . . . . . 122 . 35 . . . . 129 . 13 . . 43 313 Knockbacks 13 | . 1 . 8 . 4 . . . . . . . . . . . . . . Impact . | . . . . . . . . . . . . . . . . . . . . Kinetic 12 | . 1 . 7 . 4 . . . . . . . . . . . . . . Secondary 1 | . . . 1 . . . . . . . . . . . . . . . . Self-Inflicted Damage 261 | . . 1 . . . . . . . . . . . . . . . . 260 Shots 4 | . . 1 . . . . . . . . . . . . . . . . 3 Rammed . | . . . . . . . . . . . . . . . . . . . . Targets Rammed . | . . . . . . . . . . . . . . . . . . . . Kicked . | . . . . . . . . . . . . . . . . . . . . Crushed . | . . . . . . . . . . . . . . . . . . . . Highest Temperature 270 | 20 103 108 270 12 21 . . . . 5 . . . . . . . 8 90 Average Temperature 54 | 15 25 44 66 9 7 . . . . 5 . . . . . . . 8 78 Received Heat Transfer 879 | . 183 . 438 . 126 . 6 . . 9 . . . . 54 . . 36 27 Siege Activations . | . . . . . . . . . . . . . . . . . . . . Martial Activations . | . . . . . . . . . . . . . . . . . . . . Shielding Activations . | . . . . . . . . . . . . . . . . . . . . Robots Disrupted . | . . . . . . . . . . . . . . . . . . . . Combat Hostiles . | . . . . . . . . . . . . . . . . . . . . Robots Corrupted . | . . . . . . . . . . . . . . . . . . . . Combat Hostiles . | . . . . . . . . . . . . . . . . . . . . Parts Fried . | . . . . . . . . . . . . . . . . . . . . Impact Corruptions . | . . . . . . . . . . . . . . . . . . . . Robots Melted . | . . . . . . . . . . . . . . . . . . . . Combat Hostiles . | . . . . . . . . . . . . . . . . . . . . Parts Melted 6 | . . . 5 . 1 . . . . . . . . . . . . . . Heat Transferred 3227 | 50 550 . 1998 74 555 . . . . . . . . . . . . . . Parts Sabotaged . | . . . . . . . . . . . . . . . . . . . . Parts Stolen . | . . . . . . . . . . . . . . . . . . . . Parts Stripped . | . . . . . . . . . . . . . . . . . . . . Power Chain Reactions . | . . . . . . . . . . . . . . . . . . . . Alert | -11 -10 -10 -9 -9 -8 -7 -7 -7 -7 -5 -5 -5 -5 -4 -4 -3 -2 -2 -2 ------- Run | Yrd Mat Min Mat Min Mat Fac Sto Rec Scr Fac Upp Upp Zhi Pro Fac Res Res Tes Frg Maximum Alert Level 2 | . 1 . 2 . . . . . . . . . . . . . . . 2 Low Security (%) 88 | 100 98 100 71 100 100 100 100 100 . 100 . . . . 100 100 100 100 83 Level 1 8 | . 1 . 23 . . . . . . . . . . . . . . . 10 Level 2 2 | . . . 5 . . . . . . . . . . . . . . . 5 Level 3 . | . . . . . . . . . . . . . . . . . . . . Level 4 . | . . . . . . . . . . . . . . . . . . . . Level 5 . | . . . . . . . . . . . . . . . . . . . . High Security . | . . . . . . . . . . . . . . . . . . . . Max Security . | . . . . . . . . . . . . . . . . . . . . Peak Influence 454 | 10 211 66 418 170 72 54 30 161 . 69 . . . . 98 48 3 116 454 Initial 160 | . 3 61 . 160 62 3 . 4 . . . . . . . 43 . . 54 Average 79 | 1 111 14 132 145 21 16 4 88 . 18 . . . . 14 11 . 46 98 Influence Increases 4157 | 15 599 29 1038 50 197 144 35 207 . 218 . . 5 . 255 63 6 297 999 Destroy 0b10 Robot/C 1120 | . 280 . 620 40 80 . 20 . . . . . . . . . . . 80 Destroy 0b10 Robot/NC 180 | 15 35 . 60 . 15 5 . 10 . . . . 5 . . . . 10 25 Destroy Leader 300 | . 50 . 194 10 24 . 10 . . . . . . . . . . 2 10 Successful Hack 374 | . 24 . 53 . 21 51 . 30 . 42 . . . . 37 . . 51 65 Select Force Hacks 210 | . 60 . 30 . . . . 120 . . . . . . . . . . . Disable Machine 375 | . 15 . 30 . 30 . . 15 . . . . . . . . . 30 255 Destroy Structure 323 | . . 29 21 . 12 13 5 2 . 26 . . . . 38 18 6 9 144 Partial Spotted 255 | . . . . . . 30 . . . 45 . . . . 15 45 . 15 105 Lose Combat Pursuer 1020 | . 135 . 30 . 15 45 . 30 . 105 . . . . 165 . . 180 315 Influence Decreases 3688 | 10 447 186 627 301 348 152 25 77 141 171 47 . 5 . 171 147 6 201 626 Entered New Map 704 | . 2 96 . 251 98 6 1 7 141 . 19 . . . . 41 . . 42 Time Decay 2734 | 10 435 70 597 50 230 146 24 70 . 161 28 . 5 . 161 106 6 171 464 Lost Part 250 | . 10 20 30 . 20 . . . . 10 . . . . 10 . . 30 120 Squads Dispatched 54 | . 2 . 4 . 3 4 1 . . 13 . . . . 8 2 2 5 10 Investigation 32 | . 2 . 2 . 1 2 1 . . 9 . . . . 3 1 2 2 7 Extermination 9 | . . . . . . 1 . . . 2 . . . . 3 1 . 1 1 Reinforcement 13 | . . . 2 . 2 1 . . . 2 . . . . 2 . . 2 2 Assault . | . . . . . . . . . . . . . . . . . . . . Garrison . | . . . . . . . . . . . . . . . . . . . . Intercept . | . . . . . . . . . . . . . . . . . . . . Searches Triggered . | . . . . . . . . . . . . . . . . . . . . Construction Impeded . | . . . . . . . . . . . . . . . . . . . . Haulers Reinforced . | . . . . . . . . . . . . . . . . . . . . Active Scanning Responses . | . . . . . . . . . . . . . . . . . . . . Cargo Convoy Interrupts . | . . . . . . . . . . . . . . . . . . . . Stealth | -11 -10 -10 -9 -9 -8 -7 -7 -7 -7 -5 -5 -5 -5 -4 -4 -3 -2 -2 -2 --------- Run | Yrd Mat Min Mat Min Mat Fac Sto Rec Scr Fac Upp Upp Zhi Pro Fac Res Res Tes Frg Distress Signals 20 | . 2 . 4 . 1 . 1 . . 1 . . . . 2 . 1 . 8 Communications Jammed 60 | . . . . . . . . . . . . . . . 16 . . 3 41 Distress Signals 57 | . . . . . . . . . . . . . . . 16 . . . 41 Times Spotted 271 | . 23 8 55 2 15 9 5 2 . 11 . . . . 25 . 1 23 92 Peak Tracking Total 18 | . 4 6 5 2 9 4 4 2 . 6 . . . . 8 . 2 8 18 Tactical Retreats 38 | . 4 1 2 . 1 1 . 1 . 3 . . . . 7 . . 7 11 Traps | -11 -10 -10 -9 -9 -8 -7 -7 -7 -7 -5 -5 -5 -5 -4 -4 -3 -2 -2 -2 ------- Run | Yrd Mat Min Mat Min Mat Fac Sto Rec Scr Fac Upp Upp Zhi Pro Fac Res Res Tes Frg Traps Triggered 7 | . . . 2 . . . . . . . . . . . . . . 1 4 Indirectly . | . . . . . . . . . . . . . . . . . . . . Trap Hack Attempts . | . . . . . . . . . . . . . . . . . . . . Triggered . | . . . . . . . . . . . . . . . . . . . . Disarmed . | . . . . . . . . . . . . . . . . . . . . Reprogrammed 6 | . . . . . . . . . . . . . . . . . . . 6 Reused . | . . . . . . . . . . . . . . . . . . . . Traps Extracted . | . . . . . . . . . . . . . . . . . . . . Installed 1 | . . . 1 . . . . . . . . . . . . . . . . Triggered . | . . . . . . . . . . . . . . . . . . . . Most Traps Carried 1 | . . 1 1 . . . . . . . . . . . . . . . . Machines | -11 -10 -10 -9 -9 -8 -7 -7 -7 -7 -5 -5 -5 -5 -4 -4 -3 -2 -2 -2 ---------- Run | Yrd Mat Min Mat Min Mat Fac Sto Rec Scr Fac Upp Upp Zhi Pro Fac Res Res Tes Frg Machines Disabled 25 | . 1 . 2 . 2 . . 1 . . . . . . . . . 2 17 Max in Single Turn 5 | . 1 . 1 . 1 . . 1 . . . . . . . . . 1 5 Garrison Access 6 | . . . . . . 1 1 . . 2 . . . . 1 . . 1 . Machines Repaired . | . . . . . . . . . . . . . . . . . . . . Machines Dismantled . | . . . . . . . . . . . . . . . . . . . . Machines Sabotaged . | . . . . . . . . . . . . . . . . . . . . Overloaded Fab Kills . | . . . . . . . . . . . . . . . . . . . . Hacking | -11 -10 -10 -9 -9 -8 -7 -7 -7 -7 -5 -5 -5 -5 -4 -4 -3 -2 -2 -2 --------- Run | Yrd Mat Min Mat Min Mat Fac Sto Rec Scr Fac Upp Upp Zhi Pro Fac Res Res Tes Frg Machines Accessed 124 | . 9 . 12 . 7 14 3 9 4 12 1 . 4 . 15 3 4 10 17 Terminals 67 | . 6 . 9 . 5 8 2 5 . 4 1 . . . 9 1 1 6 10 Fabricators 11 | . . . . . . 2 . . . 1 . . . . 2 1 1 . 4 Repair Stations 7 | . 1 . 1 . 1 2 . . . . . . . . . . 1 1 . Recycling Units 20 | . 2 . 1 . . . . 4 . 5 . . . . 3 1 1 . 3 Scanalyzers 5 | . . . 1 . 1 1 . . . . . . . . . . . 2 . Garrison Access 6 | . . . . . . 1 1 . . 2 . . . . 1 . . 1 . Total Hacks 380 | . 22 . 44 . 17 40 5 20 11 24 1 . 17 . 65 8 11 41 54 Successful 284 | . 14 . 34 . 11 37 3 15 11 14 1 . 17 . 44 4 8 25 46 Failed 95 | . 8 . 10 . 6 3 2 5 . 10 . . . . 20 4 3 16 8 Catastrophic 8 | . . . 1 . . . 1 1 . 1 . . . . 2 . . 2 . Database Lockouts 1 | . . . . . . . . . . . . . . . 1 . . . . Manual 184 | . 8 . 24 . 14 18 4 9 . 11 . . . . 40 3 3 21 29 Terminals 253 | . 17 . 30 . 14 25 4 16 . 14 1 . . . 49 2 4 36 41 Fabricators 38 | . . . . . . 8 . . . 2 . . . . 8 5 5 . 10 Repair Stations 16 | . 2 . 7 . 1 4 . . . . . . . . . . 1 1 . Recycling Units 24 | . 3 . 2 . . . . 4 . 6 . . . . 4 1 1 . 3 Scanalyzers 12 | . . . 5 . 2 2 . . . . . . . . . . . 3 . Garrison Access 9 | . . . . . . 1 1 . . 2 . . . . 4 . . 1 . Terminal Hacks 122 | . 5 . 8 . 1 11 1 7 11 2 1 . 17 . 22 . 2 14 20 Record 16 | . . . . . . . . . 9 . 1 . 5 . . . . . 1 Part Schematic 8 | . . . . . . 2 . . . . . . 4 . 1 . . 1 . Robot Analysis 5 | . . . . . . . . . . . . . 4 . . . . . 1 Prototype ID Bank 21 | . 1 . 1 . . 2 . 3 . 1 . . 4 . 4 . . 2 3 Open Door 1 | . . . . . . . . . 1 . . . . . . . . . . Level Access Points 2 | . . . . . . . . . . . . . . . 1 . . 1 . Branch Access Points 3 | . . . . . . 1 . 1 . . . . . . 1 . . . . Emergency Access Points 3 | . . . . . . . . . . . . . . . 1 . . 1 1 Machine Index 2 | . . . . . . . . 1 . . . . . . . . . . 1 Terminal Index 8 | . 1 . 1 . . 1 1 1 . 1 . . . . 1 . 1 . . Fabricator Index 1 | . . . . . . . . . . . . . . . . . . 1 . Scanalyzer Index 1 | . 1 . . . . . . . . . . . . . . . . . . Alert Level 3 | . . . 2 . . . . . . . . . . . . . . . 1 Locate Traps 11 | . 1 . 1 . . 2 . . . . . . . . 2 . 1 1 3 Reprogram Traps 1 | . . . . . . . . . . . . . . . . . . . 1 Dispatch Records 1 | . . . . . . . . . . . . . . . . . . 1 . Patrol Status 7 | . . . 1 . . . . . . . . . . . 2 . . 1 3 Investigation Status 1 | . . . . . . . . . . . . . . . 1 . . . . Extermination Status 2 | . . . . . . . . . . . . . . . 2 . . . . Reinforcement Status 1 | . . . . . . . . . . . . . . . . . . 1 . Recall Extermination 2 | . . . . . . . . . . . . . . . 2 . . . . Recall Reinforcements 1 | . . . . . . . . . . . . . . . . . . 1 . Registered Components 3 | . . . . . . 1 . . . . . . . . 1 . . . 1 Zone Layout 17 | . 1 . 2 . 1 2 . 1 . . . . . . 3 . . 3 4 Proto ID Catalog 1 | . . . . . . . . . 1 . . . . . . . . . . Fabricator Hacks 26 | . . . . . . 5 . . . 1 . . . . 6 3 3 . 8 Network Status 5 | . . . . . . 1 . . . . . . . . 2 1 1 . . Load Schematic 12 | . . . . . . 3 . . . 1 . . . . 2 1 1 . 4 Build 9 | . . . . . . 1 . . . . . . . . 2 1 1 . 4 Repair Station Hacks 13 | . 2 . 6 . . 4 . . . . . . . . . . . 1 . Scan Component 7 | . 1 . 3 . . 2 . . . . . . . . . . . 1 . Repair 6 | . 1 . 3 . . 2 . . . . . . . . . . . . . Recycling Unit Hacks 2 | . 1 . 1 . . . . . . . . . . . . . . . . Report Inventory 2 | . 1 . 1 . . . . . . . . . . . . . . . . Scanalyzer 8 | . . . 4 . 2 2 . . . . . . . . . . . . . Insert Component 4 | . . . 2 . 1 1 . . . . . . . . . . . . . Analyze 4 | . . . 2 . 1 1 . . . . . . . . . . . . . Garrison Access Hacks 6 | . . . . . . 1 1 . . 2 . . . . 1 . . 1 . Seal Access 6 | . . . . . . 1 1 . . 2 . . . . 1 . . 1 . Unauthorized Hacks 107 | . 6 . 15 . 8 14 1 8 . 9 . . . . 15 1 3 9 18 Terminals 78 | . 4 . 14 . 7 11 1 4 . 3 . . . . 11 . . 8 15 Track 10 | . 1 . 2 . 1 . . . . . . . . . 1 . . 2 3 Assimilate 7 | . . . 2 . . 1 . . . . . . . . 2 . . 1 1 Botnet 26 | . 2 . 3 . 3 3 1 1 . 3 . . . . 3 . . 3 4 Disrupt 1 | . . . . . . . . . . . . . . . . . . . 1 Operators 6 | . 1 . 1 . 1 1 . . . . . . . . . . . 1 1 Skim 28 | . . . 6 . 2 6 . 3 . . . . . . 5 . . 1 5 Fabricators 6 | . . . . . . 3 . . . 1 . . . . 1 . 1 . . Prioritize 3 | . . . . . . 1 . . . . . . . . 1 . 1 . . Recompile 3 | . . . . . . 2 . . . 1 . . . . . . . . . Repair Stations 2 | . . . . . 1 . . . . . . . . . . . 1 . . Mechanics 2 | . . . . . 1 . . . . . . . . . . . 1 . . Recycling Units 20 | . 2 . 1 . . . . 4 . 5 . . . . 3 1 1 . 3 Tunnel 7 | . 2 . 1 . . . . 4 . . . . . . . . . . . Fedlink 13 | . . . . . . . . . . 5 . . . . 3 1 1 . 3 Scanalyzers 1 | . . . . . . . . . . . . . . . . . . 1 . Researchers 1 | . . . . . . . . . . . . . . . . . . 1 . Garrison Access . | . . . . . . . . . . . . . . . . . . . . Data Cores Recovered 2 | . . . . . . . . . . . . . . . . . . 1 1 Used . | . . . . . . . . . . . . . . . . . . . . Hacking Detections 80 | . 6 . 12 . 7 13 2 4 . 5 . . . . 9 2 3 6 11 Full Trace Events 16 | . 1 . 1 . 1 . 1 2 . 3 . . . . . . 1 2 4 Feedback Events 1 | . . . . . . . . . . 1 . . . . . . . . . Hackware Fried 1 | . . . . . . . . . . 1 . . . . . . . . . Feedback Blocked . | . . . . . . . . . . . . . . . . . . . . Robot Schematics Acquired . | . . . . . . . . . . . . . . . . . . . . Robots Built . | . . . . . . . . . . . . . . . . . . . . Authchips . | . . . . . . . . . . . . . . . . . . . . Time . | . . . . . . . . . . . . . . . . . . . . Total Robot Build Rating . | . . . . . . . . . . . . . . . . . . . . Part Schematics Acquired 11 | . . . 1 . 1 3 . . . . . . 4 . 1 . . 1 . Parts Built 9 | . . . . . . 1 . . . . . . . . 2 1 1 . 4 Authchips 4 | . . . . . . 1 . . . . . . . . 2 1 . . . Time 443 | . . . . . . 51 . . . . . . . . 92 102 29 . 169 Total Part Build Rating 60 | . . . . . . 8 . . . . . . . . 13 8 7 . 24 Parts Repaired 6 | . 1 . 3 . . 2 . . . . . . . . . . . . . Time 198 | . 26 . 84 . . 88 . . . . . . . . . . . . . Parts Recycled . | . . . . . . . . . . . . . . . . . . . . Recycled Matter . | . . . . . . . . . . . . . . . . . . . . Retrieved Matter . | . . . . . . . . . . . . . . . . . . . . Retrieved Components . | . . . . . . . . . . . . . . . . . . . . Parts Scanalyzed 3 | . . . 1 . 1 1 . . . . . . . . . . . . . Part Schematics Acquired 3 | . . . 1 . 1 1 . . . . . . . . . . . . . Parts Damaged 1 | . . . 1 . . . . . . . . . . . . . . . . Bothacking | -11 -10 -10 -9 -9 -8 -7 -7 -7 -7 -5 -5 -5 -5 -4 -4 -3 -2 -2 -2 ------------ Run | Yrd Mat Min Mat Min Mat Fac Sto Rec Scr Fac Upp Upp Zhi Pro Fac Res Res Tes Frg Used RIF Installer . | . . . . . . . . . . . . . . . . . . . . Robots Hacked . | . . . . . . . . . . . . . . . . . . . . Non-combat . | . . . . . . . . . . . . . . . . . . . . Combat . | . . . . . . . . . . . . . . . . . . . . Robot Hacks Applied . | . . . . . . . . . . . . . . . . . . . . Relay Couplers Released . | . . . . . . . . . . . . . . . . . . . . Fabnet Peak Effective % . | . . . . . . . . . . . . . . . . . . . . Robots Rewired . | . . . . . . . . . . . . . . . . . . . . Allies Hacked . | . . . . . . . . . . . . . . . . . . . . Hacks Repelled 1 | . . . . . . . . . . . . . . . . . . . 1 Allies | -11 -10 -10 -9 -9 -8 -7 -7 -7 -7 -5 -5 -5 -5 -4 -4 -3 -2 -2 -2 -------- Run | Yrd Mat Min Mat Min Mat Fac Sto Rec Scr Fac Upp Upp Zhi Pro Fac Res Res Tes Frg Total Allies 4 | . . . . . . 1 . . . . . . . . 2 . . . 1 Largest Group 1 | . . . . . . . . . . . . . . . 1 . . . 1 Highest-Rated Group 26 | . . . . . . . . . . . . . . . 26 . . . 26 Highest-Rated Ally 26 | . . . . . . . . . . . . . . . 26 . . . 26 Total Orders . | . . . . . . . . . . . . . . . . . . . . Ally Attacks . | . . . . . . . . . . . . . . . . . . . . Total Damage . | . . . . . . . . . . . . . . . . . . . . Kills . | . . . . . . . . . . . . . . . . . . . . Allies Corrupted . | . . . . . . . . . . . . . . . . . . . . Allies Melted . | . . . . . . . . . . . . . . . . . . . . Intel | -11 -10 -10 -9 -9 -8 -7 -7 -7 -7 -5 -5 -5 -5 -4 -4 -3 -2 -2 -2 ------- Run | Yrd Mat Min Mat Min Mat Fac Sto Rec Scr Fac Upp Upp Zhi Pro Fac Res Res Tes Frg Active Infowar (turns) 8635 | 1 650 139 2372 112 621 445 125 178 343 430 185 90 82 163 555 380 148 365 1251 Sensors 4719 | . . . . . 433 441 125 178 342 430 185 90 82 163 555 380 148 365 802 Structural 6690 | . . 134 1588 84 340 445 125 178 336 428 185 90 27 163 555 380 148 365 1119 Traps 1984 | . . . 1497 112 375 . . . . . . . . . . . . . . Seismic 2557 | 1 650 5 1712 80 109 . . . . . . . . . . . . . . Jamming 3014 | . . . . . . . . . . 129 24 . 2 163 554 380 148 365 1249 Robot Analysis Total 5 | . . . . . . . . . . . . . 4 . . . . . 1 Derelict Logs Recovered 3 | . . . . . . . . . . . 1 2 . . . . . . . Drone Launches . | . . . . . . . . . . . . . . . . . . . . Drone Recoveries . | . . . . . . . . . . . . . . . . . . . . Exploration | -11 -10 -10 -9 -9 -8 -7 -7 -7 -7 -5 -5 -5 -5 -4 -4 -3 -2 -2 -2 ------------- Run | Yrd Mat Min Mat Min Mat Fac Sto Rec Scr Fac Upp Upp Zhi Pro Fac Res Res Tes Frg Turns Passed 9617 | 77 1135 272 2594 112 621 445 125 178 344 430 185 90 82 163 555 380 148 365 1316 Spaces Moved 12876 | 60 632 182 1230 42 689 714 159 425 976 1131 408 283 173 381 992 706 371 861 2461 Core 3 | 2 . . . . . 1 . . . . . . . . . . . . . Treads 725 | . 152 4 503 25 41 . . . . . . . . . . . . . . Legs . | . . . . . . . . . . . . . . . . . . . . Wheels 1589 | 58 480 178 727 17 129 . . . . . . . . . . . . . . Hover . | . . . . . . . . . . . . . . . . . . . . Flight 10559 | . . . . . 519 713 159 425 976 1131 408 283 173 381 992 706 371 861 2461 Fastest Speed 24 | 50 90 95 110 110 34 34 34 34 34 31 31 31 31 31 31 32 29 24 24 Average Speed 50 | 88 108 117 151 182 61 34 34 34 34 31 31 31 31 31 32 33 29 28 32 Slowest Speed 360 | 100 160 240 240 225 360 250 34 34 37 34 31 31 31 31 109 109 32 34 125 Overloaded Moves 253 | . . . . . . . . . . . . . . . . . . 127 126 Propulsion Burnouts . | . . . . . . . . . . . . . . . . . . . . Robots Hopped 22 | . . . . . 1 4 . . . 3 . . . . 3 1 . 5 5 Potential Cave-ins 9 | . . . . . . . . . . . . . . . . . . . 9 Cave-ins Triggered 2 | . . . . . . . . . . . . . . . . . . . 2 Exploration Rate (%) 50 | 3 83 46 91 9 61 25 35 97 81 35 74 63 62 59 35 12 8 79 52 Regions Visited 19 Branch Regions 11 Pre-discovered Areas 15 | . 2 . 1 . . 1 . 4 . 1 . 1 3 . . . . . 2 Known Exits Taken 16 | . . . 1 1 1 1 1 1 1 1 1 1 1 1 1 1 1 1 . Unknown Exits Taken 3 | 1 1 1 . . . . . . . . . . . . . . . . . Scrap Searched 6 | . . . . . . . . . 3 . 2 1 . . . . . . . Spaces Dug 124 | . . 18 2 . 12 13 5 2 . 13 3 . . 2 19 9 2 3 21 Terrain Destroyed 218 | . . 41 15 . 12 13 5 2 . 13 3 . . 2 19 9 2 3 79 Melee 104 | . . . . . 12 13 5 2 . 13 3 . . 2 19 9 2 3 21 Projectile 15 | . . . 15 . . . . . . . . . . . . . . . . AOE 99 | . . 41 . . . . . . . . . . . . . . . . 58 Terrain Rammed . | . . . . . . . . . . . . . . . . . . . . Walls Destroyed . | . . . . . . . . . . . . . . . . . . . . Machines Disabled . | . . . . . . . . . . . . . . . . . . . . Actions | -11 -10 -10 -9 -9 -8 -7 -7 -7 -7 -5 -5 -5 -5 -4 -4 -3 -2 -2 -2 --------- Run | Yrd Mat Min Mat Min Mat Fac Sto Rec Scr Fac Upp Upp Zhi Pro Fac Res Res Tes Frg Total 15246 | 75 964 225 1735 74 829 883 218 449 985 1172 461 284 196 422 1190 832 403 954 2895 Wait 1589 | 1 229 16 286 25 61 139 53 14 1 15 49 1 8 40 168 89 24 73 297 Move 12812 | 59 631 181 1229 41 686 705 158 424 975 1124 407 282 172 380 985 703 370 850 2450 Hop 22 | . . . . . 1 4 . . . 3 . . . . 3 1 . 5 5 Pick Up 55 | 5 3 3 15 1 6 6 . 1 1 4 . . 3 . 1 2 . 2 2 Fast Attach 90 | 6 4 . 13 . 8 1 . . 4 3 1 . 3 . 6 7 2 7 25 Attach 31 | 1 1 3 6 1 2 5 . . 1 4 . . . . 1 4 . . 2 Detach 31 | . 3 . 5 . 4 2 . . . 1 1 . . . 2 6 1 2 4 Swap 74 | . 16 4 32 3 9 1 . 2 1 1 . 1 . . . 1 1 . 2 Drop 93 | . 4 2 20 1 16 2 . 2 2 2 . . 6 . 3 9 1 1 22 Fire 271 | 3 73 16 128 2 19 . . . . . . . . . . . . . 30 Melee 158 | . . . . . 17 18 7 6 . 15 3 . 4 2 21 10 4 14 37 Ram . | . . . . . . . . . . . . . . . . . . . . Kick . | . . . . . . . . . . . . . . . . . . . . Crush . | . . . . . . . . . . . . . . . . . . . . Escape Stasis 9 | . . . . . . . . . . . . . . . . . . . 9 Rewire . | . . . . . . . . . . . . . . . . . . . . Trap 1 | . . . 1 . . . . . . . . . . . . . . . . Miscellaneous 10 | . . . . . . . . . . . . . . . . . . . 10 Route ------- -11/Scrapyard -10/Materials (discovered 4 exits: *Mat x3 / [*Min]) -10/Mines -9/Materials (discovered 5 exits: *Mat x3 / *Min x2) -9/Mines -8/Materials -7/Factory (discovered 7 exits: *Fac x3 / *Sto x2 / *Low x2) -7/Storage -7/Recycling (discovered 2 exits: *Fac / *Scr) -7/Scraptown -5/Factory -5/Upper Caves -5/Upper Caves -5/Zhirov -4/Proximity Caves -4/Factory (discovered 6 exits: *Res x4 / Upp x2) -3/Research -2/Research -2/Testing (discovered 3 exits: *Acc / *Sec / *Frg) -2/Protoforge (discovered 1 exit: Acc) History --------- Turn | Location | Event 21 | -11/Scrapyard | Discovered new exit (range 15) 78 | -11/Scrapyard | Entered Materials 212 | -10/Materials | Discovered new exit (range 8) 307 | -10/Materials | Build established: Mutant 653 | -10/Materials | Discovered new exit (range 16) 887 | -10/Materials | Discovered new exit (range 10) 1064 | -10/Materials | Repaired Lgt. Treads 1070 | -10/Materials | Discovered new exit (range 3) 1213 | -10/Materials | Entered Mines 1214 | -10/Mines | Assembled infested the area 1219 | -10/Mines | Assisted by a Guerilla fighting off Assembled 1277 | -10/Mines | Destroyed 8 combat bots 1296 | -10/Mines | Found a hidden stash of uninstalled traps 1365 | -10/Mines | Found a damaged Exp. Sensor Array with a note attached 1368 | -10/Mines | Found Prototype Device 1480 | -10/Mines | Discovered new exit (range 7) 1485 | -10/Mines | Entered Materials 1485 | -9/Materials | Evolved 2 slots: Utility x2 1745 | -9/Materials | Repaired Structural Scanner 1959 | -9/Materials | Repaired Lgt. Cannon 2533 | -9/Materials | Discovered new exit (range 4) 2761 | -9/Materials | Repaired Imp. Ion Engine 2895 | -9/Materials | Discovered new exit (range 6) 3236 | -9/Materials | Discovered new exit (range 16) 3237 | -9/Materials | Core integrity fell below 50% 3752 | -9/Materials | Identified exit to Materials 3825 | -9/Materials | Learned Storage terminal intel 3890 | -9/Materials | Identified exit to Mines 3924 | -9/Materials | Core integrity fell below 20% 3946 | -9/Materials | Loaded intel: 12 terminal locations 3948 | -9/Materials | Identified Exp. Sensor Array 3994 | -9/Materials | Learned Storage stockpile data 4031 | -9/Materials | Loaded intel: 40 non-interactive machine locations 4079 | -9/Materials | Entered Mines 4191 | -9/Mines | Entered Materials 4191 | -8/Materials | Evolved 2 slots: Propulsion x1, Utility x1 4702 | -8/Materials | Discovered new exit (range 9) 4812 | -8/Materials | Identified exit to Factory 4812 | -8/Materials | Entered Factory 4812 | -7/Factory | Evolved 2 slots: Utility x2 4874 | -7/Factory | Repaired Xenon Bombardment Thruster? 4936 | -7/Factory | Discovered new exit (range 13) 4957 | -7/Factory | Identified exit to Storage 4957 | -7/Factory | Identified exit to Lower Caves 5031 | -7/Factory | Learned Extension trap positions 5080 | -7/Factory | Repaired Xenon Bombardment Thruster 5084 | -7/Factory | Learned Extension interactive machine intel 5113 | -7/Factory | Build established: Hacker-Scout 5129 | -7/Factory | Learned location of 2 exits from Lower Caves 5166 | -7/Factory | Learned location of 1 exit from Extension 5194 | -7/Factory | Learned location of Zion (-6) 5200 | -7/Factory | Fabricated Exp. Sensor Array (x1) 5211 | -7/Factory | Learned location of 2 exits from Proximity Caves 5238 | -7/Factory | Identified exit to Factory 5257 | -7/Factory | Entered Storage 5259 | -7/Storage | Loaded intel: 16 terminal locations 5380 | -7/Storage | Used back door to open Recycling access 5380 | -7/Storage | Discovered new exit (range 5) 5381 | -7/Storage | Identified exit to Recycling 5382 | -7/Storage | Entered Recycling 5436 | -7/Recycling | Discovered new exit (range 9) 5439 | -7/Recycling | Identified exit to Factory 5552 | -7/Recycling | Scanned before Scraplab entrance 5556 | -7/Recycling | Discovered new exit (range 11) 5557 | -7/Recycling | Entered Scraplab 5560 | -7/Recycling | Identified exit to Scraptown 5560 | -7/Recycling | Entered Scraptown 5596 | -7/Scraptown | Visited Assassins FH 5601 | -7/Scraptown | Visited Red Mages 5620 | -7/Scraptown | Visited Comm Corps 5637 | -7/Scraptown | Visited CR-KLE's Repair Center 5640 | -7/Scraptown | CR-KLE repaired 1 part 5645 | -7/Scraptown | Visited Awakened 5650 | -7/Scraptown | Visited SPCMW 5762 | -7/Scraptown | Visited UFD Registry 5762 | -7/Scraptown | Registered with UFD as "Carbontank" 5771 | -7/Scraptown | Visited A0-MCA Data Center 5773 | -7/Scraptown | Given a B rating by A0-MCA 5784 | -7/Scraptown | Visited Sword Containment 5806 | -7/Scraptown | Visited Abandonware Association 5809 | -7/Scraptown | Learned abandonware demo "POISON.EXE" 5809 | -7/Scraptown | Learned abandonware demo "KABOOM.EXE" 5817 | -7/Scraptown | Visited Derelict Rescue Squad 5824 | -7/Scraptown | Visited Scrap Suit Storage 5827 | -7/Scraptown | Visited Science Guys 5840 | -7/Scraptown | Visited Chapter 10 5846 | -7/Scraptown | Visited Scrapoid Research Area 5855 | -7/Scraptown | Visited DA-N13 Charitable Foundation 5876 | -7/Scraptown | Met Optimus 5876 | -7/Scraptown | Accepted into 0bPrime 5894 | -7/Scraptown | Discovered exit to Factory (range 3) 5903 | -7/Scraptown | System corruption cleaned by C-Scrubber 5904 | -7/Scraptown | Entered Factory 5904 | -5/Factory | Evolved 4 slots: Power x1, Propulsion x1, Utility x2 5945 | -5/Factory | Loaded intel: 8 recycling unit locations 5947 | -5/Factory | Learned location of Protoforge (-2) 6021 | -5/Factory | Hacking Suite fried by hacking feedback 6331 | -5/Factory | Discovered new exit (range 4) 6332 | -5/Factory | Identified exit to Upper Caves 6334 | -5/Factory | Entered Upper Caves 6494 | -5/Upper Caves | Spotted B-75 Beast 6513 | -5/Upper Caves | Build established: Hacker-Ninja 6514 | -5/Upper Caves | Discovered new exit (range 9) 6516 | -5/Upper Caves | Identified exit to Upper Caves 6519 | -5/Upper Caves | Entered another Upper Caves area 6544 | -5/Upper Caves | Encountered a Warlord checkpoint 6578 | -5/Upper Caves | Learned Factory security intel 6592 | -5/Upper Caves | Spotted B-75 Beast 6606 | -5/Upper Caves | Discovered new exit (range 13) 6609 | -5/Upper Caves | Identified exit to Zhirov 6609 | -5/Upper Caves | Entered Zhirov 6609 | -5/Zhirov | Discovered new exit (range 3) 6610 | -5/Zhirov | Identified exit to Proximity Caves 6615 | -5/Zhirov | Met Zhirov 6621 | -5/Zhirov | Learned location of Testing (-2) 6621 | -5/Zhirov | Learned location of Quarantine (-3) 6627 | -5/Zhirov | Zhirov requested help retrieving the SGEMP Prototype 6634 | -5/Zhirov | Found Alien Artifact 6634 | -5/Zhirov | Identified Integrated Dissipator 6634 | -5/Zhirov | Installed Integrated Dissipator, increased core heat dissipation (+20) 6679 | -5/Zhirov | Found Alien Artifact 6691 | -5/Zhirov | Entered Proximity Caves 6692 | -4/Proximity Caves | Identified exit to Factory 6854 | -4/Proximity Caves | Entered Factory 6854 | -4/Factory | Evolved 2 slots: Utility x2 6865 | -4/Factory | Loaded intel: 8 recycling unit locations 6939 | -4/Factory | Fabricated Adv. Hacking Suite (x1) 7082 | -4/Factory | Identified exit to Research 7082 | -4/Factory | Central database locked down 7136 | -4/Factory | Fabricated Field Propulsion Array? 7189 | -4/Factory | Identified exit to Upper Caves 7267 | -4/Factory | Learned Research emergency access door positions 7337 | -4/Factory | Learned 2 Upper Caves zone layouts 7381 | -4/Factory | Spotted B-86 Titan 7398 | -4/Factory | Learned Testing machine intel 7409 | -4/Factory | Entered Research 7409 | -3/Research | Evolved 2 slots: Propulsion x1, Utility x1 7523 | -3/Research | Fabricated Exp. Sensor Array (x1) 7593 | -3/Research | Found Prototype Device 7593 | -3/Research | Identified Exp. Focal Shield 7596 | -3/Research | Loaded intel: 5 recycling unit locations 7605 | -3/Research | Found Prototype Device 7605 | -3/Research | Identified Exp. EM Disruption Field 7622 | -3/Research | Discovered new exit (range 7) 7624 | -3/Research | Identified exit to Research 7789 | -3/Research | Entered another Research area 7789 | -2/Research | Evolved 2 slots: Propulsion x1, Utility x1 7830 | -2/Research | Loaded intel: 5 recycling unit locations 7897 | -2/Research | Discovered new exit (range 2) 7897 | -2/Research | Identified exit to Testing 7912 | -2/Research | Fabricated Field Propulsion Array? 7937 | -2/Research | Entered Testing 7938 | -2/Testing | Loaded intel: 61 machine locations 7944 | -2/Testing | Spotted Alpha 7 8053 | -2/Testing | Discovered new exit (range 9) 8222 | -2/Testing | Found Prototype Device 8222 | -2/Testing | Identified Exp. Shock Absorption System 8231 | -2/Testing | Spotted Striker 8231 | -2/Testing | Identified exit to Access 8278 | -2/Testing | Spotted Fortress 8299 | -2/Testing | Discovered new exit (range 6) 8299 | -2/Testing | Discovered new exit (range 7) 8300 | -2/Testing | Identified exit to Protoforge 8301 | -2/Testing | Identified exit to Section 7 8302 | -2/Testing | Entered Protoforge 8343 | -2/Protoforge | Spotted Hotshot 8620 | -2/Protoforge | Spotted Hotshot 8620 | -2/Protoforge | Spotted Hotshot 8656 | -2/Protoforge | Build established: Wizard-Ninja 8682 | -2/Protoforge | Learned Research trap positions 8699 | -2/Protoforge | Superfortress began startup sequence 8720 | -2/Protoforge | Learned Research garrison access intel 8727 | -2/Protoforge | Spotted AP7-3 8730 | -2/Protoforge | Spotted Hotshot 8732 | -2/Protoforge | Spotted AP7-3 8749 | -2/Protoforge | Learned 8 Access zone layouts 8760 | -2/Protoforge | Spotted EXE-6 8760 | -2/Protoforge | Spotted EXE-6 8769 | -2/Protoforge | UFD initiated attack on Protoforge 8769 | -2/Protoforge | Loaded intel: 3 recycling unit locations 8770 | -2/Protoforge | Learned 8 Access zone layouts 8809 | -2/Protoforge | Fabricated Med. Storage Unit (x1) 8814 | -2/Protoforge | Learned Research fabricator intel 8852 | -2/Protoforge | Fabricated Field Propulsion Array (x1) 8854 | -2/Protoforge | Fabricated Field Propulsion Array? 8878 | -2/Protoforge | Optimus greeted in Protoforge 8889 | -2/Protoforge | Learned Research interactive machine intel 8892 | -2/Protoforge | Found UFD Drillbomb 8985 | -2/Protoforge | Spotted Executioner 9033 | -2/Protoforge | Installed UFD Drillbomb at designated target 9033 | -2/Protoforge | UFD reported confirmed Drillbomb installation 9090 | -2/Protoforge | Found UFD Drillbomb 9139 | -2/Protoforge | Lost 7 allies 9165 | -2/Protoforge | Spotted Executioner 9169 | -2/Protoforge | Spotted Executioner 9172 | -2/Protoforge | Spotted Executioner 9205 | -2/Protoforge | Spotted Executioner 9231 | -2/Protoforge | Lost 6 allies 9237 | -2/Protoforge | Spotted Striker 9237 | -2/Protoforge | Spotted Executioner 9344 | -2/Protoforge | Fabricated Point Singularity Launcher (x1) 9366 | -2/Protoforge | Spotted Striker 9368 | -2/Protoforge | Spotted Striker 9378 | -2/Protoforge | Spotted Striker 9387 | -2/Protoforge | Spotted Striker 9389 | -2/Protoforge | Destroyed Striker 9405 | -2/Protoforge | Build established: Hacker-Mutant 9407 | -2/Protoforge | Lost 3 parts (1p2u) 9415 | -2/Protoforge | Destroyed Striker 9419 | -2/Protoforge | Lost 4 allies 9422 | -2/Protoforge | Core integrity fell below 50% 9458 | -2/Protoforge | Spotted Decapitator 9459 | -2/Protoforge | Spotted Decapitator 9459 | -2/Protoforge | Spotted Overlord 9470 | -2/Protoforge | Found Prototype Slashing Weapon 9470 | -2/Protoforge | Identified Exp. Terror Saw 9491 | -2/Protoforge | Crushed by falling debris 9511 | -2/Protoforge | Spotted Executioner 9511 | -2/Protoforge | Spotted Striker 9514 | -2/Protoforge | Crushed by falling debris 9537 | -2/Protoforge | Spotted Executioner 9541 | -2/Protoforge | Lost 3 parts (1n2w) 9543 | -2/Protoforge | Spotted Decapitator 9544 | -2/Protoforge | Spotted Decapitator 9544 | -2/Protoforge | Spotted B-90 Cyclops 9549 | -2/Protoforge | Spotted Striker 9549 | -2/Protoforge | Spotted Striker 9553 | -2/Protoforge | Core integrity fell below 20% 9558 | -2/Protoforge | Lost 15 allies 9584 | -2/Protoforge | Lost 4 parts (3n1u) 9589 | -2/Protoforge | Spotted Executioner 9604 | -2/Protoforge | Destroyed 02F13-K 9611 | -2/Protoforge | Found Prototype Device 9611 | -2/Protoforge | Identified Adv. Kinecellerator 9618 | -2/Protoforge | Destroyed by Executioner with Helical Railgun Last Messages --------------- 09614_ Lugger 118 destroyed. 09614_ N-04 Retriever inserts Prototype Processor into Forge Plexus. 09614_ N-04 Retriever inserts CPS Tube into Forge Plexus. 09615_ Acquired 10 matter. 09615_ N-04 Retriever inserts Impulse Thruster Array into Forge Plexus. 09615_ Penetrated by Slug. 09616_ N-04 Retriever inserts Lgt. Quantum Reactor into Forge Plexus. 09616_ N-04 Retriever destroyed. 09616_ N-04 Retriever collects Corrupted Med. Treads. 09618_ N-04 Retriever collects Corrupted Imp. Ion Engine. 09618_ N-04 Retriever inserts Ovr. Flexi-carbon Leg into Forge Plexus. 09618_ S-43 Plague destroyed. 09618_ Dropped Exp. Surge Thruster. 09618_ Penetrated by Slug. Map ----- +----------------------------------------------------+ | ????#####????????????????????????????????????????? | | ?????????????????????????????????????????????????? | | ##################### ######################## | | ################################################## | | ## | | " " ## "" "" " | | ## """" " " "" """ " | | % ## "" " "" """ """" "" "" " | | ## """ """" """ " """ "" " | | ## "" % " "" """ | | ## """ """ | | # "" """" " " * % | | ]#!!= " "" " " [%" | | "!#%[=!] " """ " " =[ % | | %==%%!*!* " """""" " " *%= " | | % [!!=[!=! " | " | | % % %! %!! """ "= """! | | #%"%#%%%%%% " % """" =%!%[ "% | | ###=*#%% %%%sss % " " "!/" %%" | | #= !##[%%% %%" nn ""&" " " % "% | | # # != % "" " %" &% n %& % " % | | ##% % % "" " """"""""" %% % | | ######[ " % """""""""""""""%%% | | ##### %% """"""""""""""""" % | | #?## %%! " ! """""""""""""""""""% | | ###?## !& % "" "! @""""""""""""""""""""" & | | ##??## % """""""""""""""""""""""% | | ##??## " "" %""""""""""""""""""""""""" | | #???## """""% " """"""""""""""""""""""""""" | | #???## "" %" % " """"""""""""""""""""""""""" | | ????## "" " % "" %""""""""""""""""""""""""""" | | ????## "" " """""""""""""""""""""""""""" | | ????## "" " """""""""""""""""""""""""""" | | ????## " """""""""""""""""""""""""""" | | ????## n"""""""""""""""""""""""""""" | | ????## n """""""""""""""""""""""""""" | | ????## " """""""""""""""""""""""""""" | | ????## """ """""""""""""""""""""""""""" | | ????## " """ " """""""""""""""""""""""""""" | | ????## "" """""""""""""""""""""""""""" | | ????## """"""""""""""""""""""""""" | | ????## %""""""""""""""""""""""""""" | | ????## """""" """"""""""""""""""""""""""" | | ????## """ " """"""""""""""""""""""""" | | ###### " " %""""""""""""""""""""""" | | ###### "" """"""""""""""""""""" | | ## "" " """"""""""""""""""" | | ## "" " """"""""""""""""" | | ## """ """"""""""""""" "" | | ## " " % % """""""""% "" | +----------------------------------------------------+ Best States ------------- Heat Dissipation 69 Energy Generation 35 Energy Capacity 840 Matter Stores 300 Matter Capacity 300 Sight Range 16 Robot Scan Range 20 Terrain Scan Density 10 Jamming Range 16 Additional Mass Support 16 Armor Coverage 225 Propulsion Shielding 15 Evasion (%) 65 Recoil Reduction 2 Offensive Hacking 46 Defensive Hacking 21 Authchip Count 3 Item Schematics ----------------- Exp. Sensor Array | -9/Materials | Scanalyzed Hacking Suite | -8/Materials | Scanalyzed Med. Storage Unit | -7/Factory | Hacked Imp. Terrain Scanner | -7/Factory | Scanalyzed Adv. Hacking Suite | -7/Factory | Hacked Exp. Optical Array | -5/Zhirov | Free Exp. Heat Sink | -5/Zhirov | Free Imp. Arc Thrower | -5/Zhirov | Free Assault Drone Bay | -5/Zhirov | Free Field Propulsion Array | -4/Factory | Hacked Point Singularity Launcher | -2/Testing | Hacked Robot Schematics ------------------ None Fabricated ------------ Exp. Sensor Array | x1 | -7/Factory | Authchip Adv. Hacking Suite | x1 | -4/Factory | Authchip Field Propulsion Array | x1 | -4/Factory | Authchip Exp. Sensor Array | x1 | -3/Research | Authchip Field Propulsion Array | x1 | -2/Research Med. Storage Unit | x1 | -2/Protoforge Field Propulsion Array | x1 | -2/Protoforge Field Propulsion Array | x1 | -2/Protoforge Point Singularity Launcher | x1 | -2/Protoforge Repaired ---------- Lgt. Treads | 31% | -10/Materials Structural Scanner | 20% | -9/Materials Lgt. Cannon | 30% | -9/Materials Imp. Ion Engine | 22% | -9/Materials Xenon Bombardment Thruster | 50% | -7/Factory Xenon Bombardment Thruster | 50% | -7/Factory Alien Tech Used ----------------- Integrated Dissipator Achievements -------------- None Challenges ------------ None Game ------ Seed DefensePartitionSplitter Manual? 0 Play Time 03:23:09 Cumulative 236.0 hours Start 2025.06.03 @ 16:28:17 End 2025.06.03 @ 19:51:41 Sessions 1 Manual Loads 0 Difficulty Rogue Special Mode None Game No. 182 Rogue 182 Adventurer 0 Explorer 0 Win Type - Total 6 Types 4/0/1/1/0/0/0/0/0/0 Lore% 77 Gallery% 68 Achievement% 56 Wizard Run 0 Options --------- Layout 2 ASCII 0 Keyboard 0 Movement Numpad Keybinds 0 Fullscreen 2 Font 16/Terminus Map View 55x47 Zoom Use 0% Tactical HUD 1 Map Filters NONE Filters NONE Steam 1 RUN: 2bfbf898-c953-4025-929d-53ea91b02b34